[Event "15. ročník Dobrovický rapid Tereos TTD a.s."]
[Site "Dobrovice, Czech Republic"]
[Date "2020.02.29"]
[Round "5.13"]
[White "Kykal Zbynek"]
[Black "Spirek Adam"]
[Result "0-1"]
[TimeControl "15m + 3s / tah"]
[WhiteElo "1827"]
[BlackElo "2015"]

1. d4 {[%clk 00:15:03]} {[%emt 00:00:02]} Nf6 {[%clk 00:15:05]} {[%emt
00:00:02]} 2. Bf4 {[%clk 00:15:01]} {[%emt 00:00:05]} c5 {[%clk 00:14:29]}
{[%emt 00:00:39]} 3. c3 {[%clk 00:14:27]} {[%emt 00:00:37]} Qb6 {[%clk
00:13:56]} {[%emt 00:00:35]} 4. Qb3 {[%clk 00:12:39]} {[%emt 00:01:51]} Qxb3
{[%clk 00:13:12]} {[%emt 00:00:48]} 5. axb3 {[%clk 00:12:40]} {[%emt 00:00:02]}
cxd4 {[%clk 00:13:14]} {[%emt 00:00:01]} 6. cxd4 {[%clk 00:12:42]} {[%emt
00:00:01]} Nc6 {[%clk 00:13:14]} {[%emt 00:00:02]} 7. e3 {[%clk 00:12:20]}
{[%emt 00:00:26]} Nb4 {[%clk 00:11:12]} {[%emt 00:02:05]} 8. Na3 {[%clk
00:12:19]} {[%emt 00:00:04]} Nh5 {[%clk 00:09:47]} {[%emt 00:01:28]} 9. Bg3
{[%clk 00:10:37]} {[%emt 00:01:44]} Nxg3 {[%clk 00:09:43]} {[%emt 00:00:08]} 10.
hxg3 {[%clk 00:10:39]} d5 {[%clk 00:08:47]} {[%emt 00:00:58]} 11. Rc1 {[%clk
00:10:13]} {[%emt 00:00:30]} a6 {[%clk 00:07:29]} {[%emt 00:01:21]} 12. Nf3
{[%clk 00:09:32]} {[%emt 00:00:43]} Bf5 {[%clk 00:06:19]} {[%emt 00:01:13]} 13.
Kd2 {[%clk 00:08:28]} {[%emt 00:01:06]} f6 {[%clk 00:05:35]} {[%emt 00:00:47]}
14. Nh4 {[%clk 00:07:12]} {[%emt 00:01:19]} Be6 {[%clk 00:02:40]} {[%emt
00:02:59]} 15. Ng6 {[%clk 00:06:38]} {[%emt 00:00:37]} Rg8 {[%clk 00:02:37]}
{[%emt 00:00:06]} 16. Nf4 {[%clk 00:06:37]} {[%emt 00:00:03]} Bf5 {[%clk
00:02:24]} {[%emt 00:00:15]} 17. Nd3 {[%clk 00:04:47]} {[%emt 00:01:54]} Nxd3
{[%clk 00:02:05]} {[%emt 00:00:22]} 18. Bxd3 {[%clk 00:04:49]} {[%emt
00:00:01]} Bxd3 {[%clk 00:02:07]} {[%emt 00:00:01]} 19. Kxd3 {[%clk 00:04:51]}
{[%emt 00:00:01]} h6 {[%clk 00:02:02]} {[%emt 00:00:08]} 20. Nb1 {[%clk
00:04:49]} {[%emt 00:00:05]} Kd7 {[%clk 00:01:44]} {[%emt 00:00:20]} 21. Nc3
{[%clk 00:04:46]} {[%emt 00:00:05]} e6 {[%clk 00:01:35]} {[%emt 00:00:13]} 22.
Na4 {[%clk 00:04:42]} {[%emt 00:00:07]} Rb8 {[%clk 00:01:11]} {[%emt 00:00:26]}
23. Rc2 {[%clk 00:04:32]} {[%emt 00:00:13]} b5 {[%clk 00:01:05]} {[%emt
00:00:09]} 24. Nc5+ {[%clk 00:04:26]} {[%emt 00:00:09]} Bxc5 {[%clk 00:01:04]}
{[%emt 00:00:04]} 25. Rxc5 {[%clk 00:03:30]} {[%emt 00:00:59]} Rgc8 {[%clk
00:01:05]} {[%emt 00:00:02]} 26. b4 {[%clk 00:03:25]} {[%emt 00:00:08]} Rxc5
{[%clk 00:00:53]} {[%emt 00:00:15]} 27. bxc5 {[%clk 00:03:24]} {[%emt
00:00:04]} a5 {[%clk 00:00:47]} {[%emt 00:00:08]} 28. Ra1 {[%clk 00:03:21]}
{[%emt 00:00:06]} Ra8 {[%clk 00:00:49]} {[%emt 00:00:02]} 29. Kc3 {[%clk
00:03:14]} {[%emt 00:00:10]} Kc6 {[%clk 00:00:49]} {[%emt 00:00:02]} 30. b3
{[%clk 00:03:08]} {[%emt 00:00:09]} b4+ {[%clk 00:00:43]} {[%emt 00:00:10]} 31.
Kd3 {[%clk 00:03:07]} {[%emt 00:00:04]} Kb5 {[%clk 00:00:45]} {[%emt 00:00:01]}
32. f3 {[%clk 00:02:58]} {[%emt 00:00:13]} e5 {[%clk 00:00:36]} {[%emt
00:00:12]} 33. dxe5 {[%clk 00:02:42]} {[%emt 00:00:19]} fxe5 {[%clk 00:00:36]}
{[%emt 00:00:02]} 34. f4 {[%clk 00:02:40]} {[%emt 00:00:05]} exf4 {[%clk
00:00:33]} {[%emt 00:00:06]} 35. gxf4 {[%clk 00:02:39]} {[%emt 00:00:04]} Kxc5
{[%clk 00:00:35]} {[%emt 00:00:01]} 36. e4 {[%clk 00:02:32]} {[%emt 00:00:10]}
dxe4+ {[%emt 00:00:06]} 37. Kxe4 Kb5 {[%clk 00:00:22]} {[%emt 00:00:09]} 38.
Kd4 {[%clk 00:02:13]} {[%emt 00:00:22]} a4 {[%clk 00:00:18]} {[%emt 00:00:07]}
39. bxa4+ {[%clk 00:02:12]} {[%emt 00:00:04]} Rxa4 {[%clk 00:00:20]} {[%emt
00:00:01]} 40. Rb1 {[%clk 00:02:11]} {[%emt 00:00:03]} Ra2 {[%clk 00:00:16]}
{[%emt 00:00:08]} 41. g4 {[%clk 00:02:05]} {[%emt 00:00:09]} Rg2 {[%clk
00:00:16]} {[%emt 00:00:03]} 42. g5 {[%clk 00:01:39]} {[%emt 00:00:30]} hxg5
{[%clk 00:00:16]} {[%emt 00:00:02]} 43. fxg5 {[%clk 00:01:41]} Rxg5 {[%clk
00:00:16]} {[%emt 00:00:02]} 44. Rb3 {[%clk 00:01:39]} {[%emt 00:00:05]} Rg4+
{[%clk 00:00:15]} {[%emt 00:00:04]} 45. Kd5 {[%clk 00:01:37]} {[%emt 00:00:05]}
Ka4 {[%clk 00:00:17]} {[%emt 00:00:02]} 46. Rb1 {[%clk 00:01:37]} {[%emt
00:00:03]} b3 {[%clk 00:00:18]} {[%emt 00:00:02]} 47. Kc5 {[%clk 00:01:37]}
{[%emt 00:00:03]} Ka3 {[%clk 00:00:19]} {[%emt 00:00:02]} 48. Rh1 {[%clk
00:00:54]} {[%emt 00:00:46]} b2 {[%clk 00:00:19]} {[%emt 00:00:03]} 49. Rh3+
{[%clk 00:00:54]} {[%emt 00:00:02]} Ka2 {[%clk 00:00:21]} 50. Rh2 {[%clk
00:00:57]} {[%emt 00:00:01]} Ka1 {[%clk 00:00:23]} 0-1

[Event "15. ročník Dobrovický rapid Tereos TTD a.s."]
[Site "Dobrovice, Czech Republic"]
[Date "2020.02.29"]
[Round "5.14"]
[White "Gombala Marek"]
[Black "Sulc Jakub"]
[Result "0-1"]
[TimeControl "15m + 3s / tah"]
[WhiteElo "2009"]
[BlackElo "1754"]

1. d4 {[%clk 00:15:04]} Nf6 {[%clk 00:15:05]} {[%emt 00:00:01]} 2. Nf3 {[%clk
00:15:04]} {[%emt 00:00:03]} e6 {[%clk 00:15:07]} {[%emt 00:00:01]} 3. c3
{[%clk 00:15:01]} {[%emt 00:00:06]} b6 {[%clk 00:15:09]} {[%emt 00:00:01]} 4.
Bg5 {[%clk 00:14:56]} {[%emt 00:00:08]} Bb7 {[%clk 00:15:08]} {[%emt 00:00:03]}
5. Nbd2 {[%clk 00:14:52]} {[%emt 00:00:07]} Be7 {[%clk 00:15:10]} {[%emt
00:00:02]} 6. e3 {[%clk 00:14:54]} {[%emt 00:00:01]} Ne4 {[%clk 00:15:06]}
{[%emt 00:00:06]} 7. Bxe7 {[%clk 00:14:51]} {[%emt 00:00:06]} Qxe7 {[%clk
00:15:07]} {[%emt 00:00:02]} 8. Nxe4 {[%clk 00:14:45]} {[%emt 00:00:09]} Bxe4
{[%clk 00:15:09]} {[%emt 00:00:02]} 9. Be2 {[%clk 00:14:47]} {[%emt 00:00:01]}
d6 {[%clk 00:15:08]} {[%emt 00:00:03]} 10. O-O {[%clk 00:14:43]} {[%emt
00:00:06]} Nd7 {[%clk 00:15:10]} {[%emt 00:00:02]} 11. Rc1 {[%clk 00:14:38]}
{[%emt 00:00:09]} O-O {[%clk 00:15:10]} {[%emt 00:00:02]} 12. Nd2 {[%clk
00:14:25]} {[%emt 00:00:16]} Bb7 {[%clk 00:15:10]} {[%emt 00:00:03]} 13. Bd3
{[%clk 00:14:07]} {[%emt 00:00:21]} f5 {[%clk 00:15:04]} {[%emt 00:00:09]} 14.
Bb1 {[%clk 00:13:58]} {[%emt 00:00:11]} Rf6 {[%clk 00:14:36]} {[%emt 00:00:32]}
15. f3 {[%clk 00:13:42]} {[%emt 00:00:19]} Rh6 {[%clk 00:14:31]} {[%emt
00:00:08]} 16. Qe1 {[%clk 00:13:17]} {[%emt 00:00:28]} Qg5 {[%clk 00:14:24]}
{[%emt 00:00:09]} 17. Qf2 {[%clk 00:12:16]} {[%emt 00:01:05]} Qh5 {[%clk
00:14:07]} {[%emt 00:00:20]} 18. h3 {[%clk 00:11:53]} {[%emt 00:00:27]} Rf8
{[%clk 00:14:01]} {[%emt 00:00:09]} 19. Rfe1 {[%clk 00:11:26]} {[%emt
00:00:28]} g5 {[%clk 00:13:36]} {[%emt 00:00:30]} 20. Kf1 {[%clk 00:11:10]}
{[%emt 00:00:19]} g4 {[%clk 00:13:21]} {[%emt 00:00:17]} 21. Ke2 {[%clk
00:10:24]} {[%emt 00:00:49]} e5 {[%clk 00:12:51]} {[%emt 00:00:33]} 22. Qg3
{[%clk 00:09:19]} {[%emt 00:01:09]} Kh8 {[%clk 00:12:31]} {[%emt 00:00:24]} 23.
hxg4 {[%clk 00:09:12]} {[%emt 00:00:10]} fxg4 {[%clk 00:12:25]} {[%emt
00:00:08]} 24. fxg4 {[%clk 00:09:09]} {[%emt 00:00:06]} Rg8 {[%clk 00:11:22]}
{[%emt 00:01:06]} 25. gxh5 {[%clk 00:08:10]} {[%emt 00:01:02]} Rxg3 {[%clk
00:11:23]} {[%emt 00:00:02]} 26. Rf1 {[%clk 00:07:55]} {[%emt 00:00:17]} Rxg2+
{[%clk 00:11:02]} {[%emt 00:00:24]} 27. Rf2 {[%clk 00:07:44]} {[%emt 00:00:14]}
Rxf2+ {[%clk 00:11:03]} {[%emt 00:00:02]} 28. Kxf2 {[%clk 00:07:46]} {[%emt
00:00:01]} Rxh5 {[%clk 00:11:05]} {[%emt 00:00:01]} 29. Rf1 {[%clk 00:07:11]}
{[%emt 00:00:38]} Rh6 {[%clk 00:10:15]} {[%emt 00:00:54]} 30. Ke1 {[%clk
00:06:59]} {[%emt 00:00:15]} exd4 {[%clk 00:10:03]} {[%emt 00:00:15]} 31. cxd4
{[%clk 00:06:38]} {[%emt 00:00:23]} Rf6 {[%clk 00:09:24]} {[%emt 00:00:41]} 32.
Rg1 {[%clk 00:06:27]} {[%emt 00:00:15]} Re6 {[%clk 00:08:58]} {[%emt 00:00:25]}
33. Kf2 {[%clk 00:05:47]} {[%emt 00:00:47]} Nf6 {[%clk 00:08:38]} {[%emt
00:00:22]} 34. Bf5 {[%clk 00:05:46]} {[%emt 00:00:03]} Re7 {[%clk 00:08:32]}
{[%emt 00:00:09]} 35. Rc1 {[%clk 00:05:45]} {[%emt 00:00:04]} c5 {[%clk
00:07:42]} {[%emt 00:00:54]} 36. Nc4 {[%clk 00:04:54]} {[%emt 00:00:54]} Ne8
{[%clk 00:06:59]} {[%emt 00:00:46]} 37. Kg3 {[%clk 00:04:00]} {[%emt 00:00:55]}
Bd5 {[%clk 00:06:09]} {[%emt 00:00:53]} 38. Kf4 {[%clk 00:03:39]} {[%emt
00:00:25]} Bxc4 {[%clk 00:05:50]} {[%emt 00:00:21]} 39. Rxc4 {[%clk 00:03:41]}
{[%emt 00:00:02]} Nf6 {[%clk 00:05:46]} {[%emt 00:00:08]} 40. dxc5 {[%clk
00:02:41]} {[%emt 00:01:03]} Nd5+ {[%clk 00:03:40]} {[%emt 00:02:08]} 41. Kf3
{[%clk 00:01:59]} {[%emt 00:00:45]} Rxe3+ {[%clk 00:03:02]} {[%emt 00:00:42]}
42. Kf2 {[%clk 00:01:49]} {[%emt 00:00:13]} bxc5 {[%clk 00:03:03]} {[%emt
00:00:01]} 43. Be4 {[%clk 00:01:41]} {[%emt 00:00:11]} Nb6 {[%clk 00:03:05]}
{[%emt 00:00:02]} 44. Kxe3 {[%clk 00:01:01]} {[%emt 00:00:43]} Nxc4+ {[%clk
00:03:06]} {[%emt 00:00:01]} 45. Ke2 {[%clk 00:00:29]} {[%emt 00:05:21]} Nxb2
{[%clk 00:04:36]} {[%emt 00:00:31]} 46. Bd5 {[%clk 00:00:24]} {[%emt 00:00:07]}
Na4 {[%clk 00:04:36]} {[%emt 00:00:04]} 47. Kd2 {[%clk 00:00:23]} {[%emt
00:00:03]} Nb6 {[%clk 00:04:36]} {[%emt 00:00:03]} 48. Bf3 {[%clk 00:00:23]}
{[%emt 00:00:03]} Kg7 {[%clk 00:04:26]} {[%emt 00:00:13]} 49. Bd1 {[%clk
00:00:21]} {[%emt 00:00:05]} Kf6 {[%clk 00:04:27]} {[%emt 00:00:02]} 50. a4
{[%clk 00:00:22]} a5 {[%clk 00:04:28]} {[%emt 00:00:03]} 51. Bc2 {[%clk
00:00:20]} {[%emt 00:00:05]} h5 {[%clk 00:04:30]} {[%emt 00:00:02]} 52. Ke3
{[%clk 00:00:22]} Ke5 {[%clk 00:04:32]} {[%emt 00:00:01]} 53. Bd1 {[%clk
00:00:21]} {[%emt 00:00:04]} h4 {[%clk 00:04:33]} {[%emt 00:00:01]} 54. Kf3
{[%clk 00:00:20]} {[%emt 00:00:04]} Kd4 {[%clk 00:04:22]} {[%emt 00:00:15]} 55.
Kg4 {[%clk 00:00:22]} {[%emt 00:00:01]} c4 {[%clk 00:04:19]} {[%emt 00:00:05]}
56. Kxh4 {[%clk 00:00:22]} {[%emt 00:00:04]} Kd3 {[%clk 00:04:16]} {[%emt
00:00:06]} 57. Kg3 {[%clk 00:00:16]} {[%emt 00:00:09]} Kd2 {[%clk 00:04:17]} 58.
Bg4 {[%clk 00:00:13]} {[%emt 00:00:06]} c3 {[%clk 00:04:19]} {[%emt 00:00:01]}
0-1

[ePGN "0.1;DGT LiveChess/2.2.5"]

[Event "15. ročník Dobrovický rapid Tereos TTD a.s."]
[Site "Dobrovice, Czech Republic"]
[Date "2020.02.29"]
[Round "6.1"]
[White "Kourousis Epaminondas"]
[Black "Plat Vojtech"]
[Result "1/2-1/2"]
[TimeControl "15m + 3s / tah"]
[WhiteElo "2406"]
[BlackElo "2553"]

1. d4 {[%clk 00:15:00]} Nf6 {[%clk 00:14:45]} {[%emt 00:00:22]} 2. Nf3 {[%clk
00:14:31]} {[%emt 00:00:30]} g6 3. Bg5 {[%emt 00:00:09]} Bg7 {[%clk 00:14:45]}
{[%emt 00:00:02]} 4. Nbd2 {[%clk 00:14:30]} d6 {[%clk 00:14:19]} {[%emt
00:00:32]} 5. c3 {[%clk 00:14:22]} {[%emt 00:00:10]} O-O {[%clk 00:14:06]}
{[%emt 00:00:17]} 6. e4 {[%clk 00:14:01]} {[%emt 00:00:23]} c5 {[%emt
00:00:10]} 7. dxc5 {[%emt 00:00:01]} dxc5 {[%clk 00:14:07]} 8. Be2 {[%clk
00:13:48]} {[%emt 00:00:14]} Nc6 {[%clk 00:14:06]} {[%emt 00:00:03]} 9. O-O
{[%clk 00:13:47]} {[%emt 00:00:04]} Bg4 {[%clk 00:14:04]} {[%emt 00:00:05]} 10.
Qc2 {[%clk 00:13:24]} {[%emt 00:00:26]} h6 {[%clk 00:13:35]} {[%emt 00:00:32]}
11. Bh4 {[%clk 00:13:16]} {[%emt 00:00:10]} Nh5 {[%clk 00:13:25]} {[%emt
00:00:15]} 12. h3 {[%clk 00:11:39]} {[%emt 00:01:40]} Nf4 {[%clk 00:12:46]}
{[%emt 00:00:42]} 13. Bc4 {[%clk 00:11:28]} {[%emt 00:00:14]} Be6 {[%clk
00:10:29]} {[%emt 00:02:20]} 14. Bg3 {[%clk 00:11:24]} {[%emt 00:00:06]} Bxc4
{[%clk 00:10:01]} {[%emt 00:00:32]} 15. Nxc4 {[%clk 00:11:25]} {[%emt
00:00:02]} Qd3 {[%clk 00:09:52]} {[%emt 00:00:13]} 16. Qxd3 {[%clk 00:11:27]}
{[%emt 00:00:02]} Nxd3 {[%clk 00:09:53]} 17. a4 {[%clk 00:11:26]} {[%emt
00:00:03]} e5 {[%clk 00:09:05]} {[%emt 00:00:52]} 18. Rfd1 {[%clk 00:11:07]}
{[%emt 00:00:21]} Rad8 {[%clk 00:09:07]} 19. Bh4 {[%clk 00:08:17]} {[%emt
00:02:54]} f6 {[%clk 00:06:38]} {[%emt 00:02:32]} 20. Rd2 {[%clk 00:07:58]}
{[%emt 00:00:22]} Nf4 {[%clk 00:06:40]} {[%emt 00:00:01]} 21. Rad1 {[%clk
00:07:53]} {[%emt 00:00:08]} Rxd2 {[%clk 00:06:42]} {[%emt 00:00:01]} 22. Rxd2
{[%clk 00:07:55]} Rd8 {[%clk 00:06:41]} {[%emt 00:00:04]} 23. Kf1 {[%clk
00:06:58]} {[%emt 00:01:00]} Rxd2 {[%clk 00:06:21]} {[%emt 00:00:23]} 24. Nfxd2
{[%clk 00:07:00]} Kf8 {[%clk 00:05:48]} {[%emt 00:00:36]} 25. f3 {[%clk
00:06:57]} {[%emt 00:00:05]} Ke7 {[%clk 00:03:20]} {[%emt 00:02:31]} 26. Bf2
{[%clk 00:06:58]} {[%emt 00:00:02]} Nd3 {[%clk 00:02:42]} {[%emt 00:00:42]} 27.
Ke2 {[%clk 00:05:33]} {[%emt 00:01:28]} Nxf2 {[%clk 00:02:37]} {[%emt
00:00:08]} 28. Kxf2 {[%clk 00:05:34]} {[%emt 00:00:01]} h5 {[%clk 00:02:25]}
{[%emt 00:00:15]} 29. Ke2 {[%clk 00:04:48]} {[%emt 00:00:49]} Bh6 {[%clk
00:02:10]} {[%emt 00:00:18]} 30. Nf1 {[%clk 00:04:28]} {[%emt 00:00:22]} Ke6
{[%clk 00:01:56]} {[%emt 00:00:17]} 31. Nfe3 {[%clk 00:04:18]} {[%emt
00:00:13]} Ne7 {[%clk 00:01:50]} {[%emt 00:00:09]} 32. g4 {[%clk 00:03:49]}
{[%emt 00:00:33]} hxg4 {[%clk 00:01:33]} {[%emt 00:00:20]} 33. hxg4 {[%emt
00:00:40]} Bg7 {[%emt 00:00:19]} 34. Nd2 1/2-1/2

[Event "15. ročník Dobrovický rapid Tereos TTD a.s."]
[Site "Dobrovice, Czech Republic"]
[Date "2020.02.29"]
[Round "6.2"]
[White "Burdalev Kirill"]
[Black "Sorm Daniel"]
[Result "0-1"]
[TimeControl "15m + 3s / tah"]
[WhiteElo "2334"]
[BlackElo "2310"]

1. d4 {[%clk 00:15:04]} {[%emt 00:00:02]} d5 {[%clk 00:15:05]} {[%emt
00:00:01]} 2. Bf4 {[%clk 00:15:01]} {[%emt 00:00:06]} Nf6 {[%clk 00:14:50]}
{[%emt 00:00:18]} 3. Nc3 {[%clk 00:14:57]} {[%emt 00:00:06]} e6 {[%clk
00:13:35]} {[%emt 00:01:18]} 4. Nb5 {[%clk 00:14:35]} {[%emt 00:00:25]} Na6
{[%clk 00:13:09]} {[%emt 00:00:29]} 5. e3 {[%clk 00:14:36]} {[%emt 00:00:04]}
c6 {[%clk 00:12:43]} {[%emt 00:00:28]} 6. Nc3 {[%emt 00:00:03]} b6 {[%clk
00:12:27]} {[%emt 00:00:17]} 7. Nf3 {[%clk 00:14:34]} {[%emt 00:00:07]} Bd6
{[%clk 00:11:02]} {[%emt 00:01:28]} 8. Ne5 {[%clk 00:14:36]} {[%emt 00:00:02]}
Nb8 {[%clk 00:10:11]} {[%emt 00:00:53]} 9. Bd3 {[%clk 00:13:37]} {[%emt
00:01:03]} Qc7 {[%clk 00:09:17]} {[%emt 00:00:57]} 10. Qf3 {[%clk 00:11:50]}
{[%emt 00:01:50]} Ba6 {[%clk 00:07:40]} {[%emt 00:01:40]} 11. O-O {[%clk
00:11:05]} {[%emt 00:00:49]} O-O {[%clk 00:07:22]} {[%emt 00:00:20]} 12. Rac1
{[%clk 00:10:36]} {[%emt 00:00:33]} Nfd7 {[%clk 00:06:32]} {[%emt 00:00:53]} 13.
Nxd7 {[%clk 00:08:42]} {[%emt 00:01:57]} Qxd7 {[%clk 00:06:29]} {[%emt
00:00:06]} 14. Ne2 {[%clk 00:07:12]} {[%emt 00:01:34]} Bxf4 {[%clk 00:06:08]}
{[%emt 00:00:24]} 15. Qxf4 {[%clk 00:07:09]} {[%emt 00:00:05]} Bxd3 {[%clk
00:05:25]} {[%emt 00:00:46]} 16. cxd3 {[%clk 00:07:11]} {[%emt 00:00:01]} Na6
{[%clk 00:05:25]} {[%emt 00:00:02]} 17. e4 {[%clk 00:07:00]} {[%emt 00:00:14]}
Rac8 {[%clk 00:04:59]} {[%emt 00:00:30]} 18. a3 {[%clk 00:06:16]} {[%emt
00:00:47]} c5 {[%clk 00:04:55]} {[%emt 00:00:06]} 19. e5 {[%clk 00:05:56]}
{[%emt 00:00:25]} cxd4 {[%clk 00:04:34]} {[%emt 00:00:23]} 20. Nxd4 {[%clk
00:05:53]} {[%emt 00:00:06]} Rxc1 {[%clk 00:04:16]} {[%emt 00:00:21]} 21. Rxc1
{[%clk 00:05:55]} {[%emt 00:00:01]} Rc8 {[%clk 00:04:18]} 22. b4 {[%clk
00:05:50]} {[%emt 00:00:08]} Nb8 {[%clk 00:03:26]} {[%emt 00:00:54]} 23. Qd2
{[%clk 00:04:49]} {[%emt 00:01:04]} Nc6 {[%clk 00:03:12]} {[%emt 00:00:18]} 24.
Qc3 {[%clk 00:04:45]} {[%emt 00:00:07]} Ne7 {[%clk 00:03:08]} {[%emt 00:00:08]}
25. Qb2 {[%clk 00:04:44]} {[%emt 00:00:03]} h6 {[%clk 00:02:39]} {[%emt
00:00:34]} 26. Rc3 {[%clk 00:04:15]} {[%emt 00:00:31]} Ng6 {[%clk 00:02:24]}
{[%emt 00:00:18]} 27. Ne2 {[%clk 00:02:50]} {[%emt 00:01:28]} Rxc3 {[%clk
00:01:31]} {[%emt 00:00:56]} 28. Qxc3 {[%clk 00:02:52]} {[%emt 00:00:02]} Qa4
{[%clk 00:01:33]} 29. f4 {[%clk 00:02:22]} {[%emt 00:00:33]} Nh4 {[%clk
00:00:51]} {[%emt 00:00:45]} 30. Qc1 {[%clk 00:01:41]} {[%emt 00:00:43]} Qb3
{[%clk 00:00:45]} {[%emt 00:00:11]} 31. d4 {[%clk 00:00:46]} {[%emt 00:00:59]}
Qd3 {[%clk 00:00:30]} {[%emt 00:00:18]} 32. Qe1 {[%clk 00:00:34]} {[%emt
00:00:15]} Nf5 {[%clk 00:00:24]} {[%emt 00:00:08]} 33. Qf2 {[%clk 00:00:36]}
{[%emt 00:00:02]} Ne3 {[%clk 00:00:11]} {[%emt 00:00:16]} 34. h3 {[%clk
00:00:16]} {[%emt 00:00:22]} Qd1+ {[%clk 00:00:08]} {[%emt 00:00:06]} 35. Kh2
{[%clk 00:00:18]} {[%emt 00:00:01]} Nf1+ {[%clk 00:00:09]} {[%emt 00:00:02]} 36.
Kg1 {[%clk 00:00:16]} {[%emt 00:00:05]} Ng3+ {[%clk 00:00:11]} {[%emt
00:00:02]} 37. Kh2 {[%clk 00:00:16]} {[%emt 00:00:03]} Nxe2 {[%clk 00:00:12]}
{[%emt 00:00:01]} 38. f5 {[%clk 00:00:15]} {[%emt 00:00:04]} Nxd4 {[%clk
00:00:10]} {[%emt 00:00:05]} 39. f6 {[%clk 00:00:14]} {[%emt 00:00:05]} Nf5
{[%clk 00:00:07]} {[%emt 00:00:06]} 40. g4 {[%clk 00:00:10]} {[%emt 00:00:06]}
Nd4 {[%clk 00:00:07]} {[%emt 00:00:03]} 41. fxg7 {[%clk 00:00:10]} {[%emt
00:00:03]} Qe2 {[%clk 00:00:09]} {[%emt 00:00:01]} 42. Qxe2 {[%clk 00:00:07]}
{[%emt 00:00:05]} Nxe2 {[%clk 00:00:11]} 0-1

[Event "15. ročník Dobrovický rapid Tereos TTD a.s."]
[Site "Dobrovice, Czech Republic"]
[Date "2020.02.29"]
[Round "6.3"]
[White "Zwardon Vojtech"]
[Black "Vavrinec Tomas"]
[Result "1-0"]
[TimeControl "15m + 3s / tah"]
[WhiteElo "2460"]
[BlackElo "2025"]

1. c4 {[%clk 00:15:04]} c5 {[%clk 00:15:04]} {[%emt 00:00:03]} 2. g3 {[%clk
00:15:06]} {[%emt 00:00:02]} Nf6 {[%clk 00:15:02]} {[%emt 00:00:05]} 3. Bg2
{[%clk 00:15:09]} g6 {[%emt 00:00:02]} 4. Nc3 Bg7 {[%clk 00:15:05]} {[%emt
00:00:01]} 5. d3 {[%clk 00:15:14]} Nc6 {[%clk 00:15:03]} {[%emt 00:00:05]} 6.
Bg5 {[%clk 00:15:16]} {[%emt 00:00:01]} h6 {[%clk 00:14:34]} {[%emt 00:00:32]}
7. Bd2 {[%clk 00:15:18]} O-O {[%clk 00:14:24]} {[%emt 00:00:14]} 8. Qc1 {[%clk
00:15:20]} {[%emt 00:00:01]} Kh7 {[%clk 00:14:14]} {[%emt 00:00:13]} 9. h4
{[%clk 00:15:23]} {[%emt 00:00:01]} d6 {[%clk 00:13:55]} {[%emt 00:00:21]} 10.
h5 {[%clk 00:15:25]} {[%emt 00:00:02]} gxh5 {[%clk 00:13:13]} {[%emt 00:00:44]}
11. Nd5 {[%clk 00:15:22]} {[%emt 00:00:06]} Bf5 {[%clk 00:10:53]} {[%emt
00:02:22]} 12. Nxf6+ {[%clk 00:15:22]} {[%emt 00:00:04]} exf6 {[%clk 00:10:22]}
{[%emt 00:00:34]} 13. Bxh6 {[%clk 00:15:16]} {[%emt 00:00:09]} Bg6 {[%clk
00:09:56]} {[%emt 00:00:29]} 14. Bf4 {[%clk 00:15:01]} {[%emt 00:00:18]} Rh8
{[%clk 00:07:50]} {[%emt 00:02:09]} 15. Qd2 {[%clk 00:14:49]} {[%emt 00:00:15]}
Rb8 {[%clk 00:07:04]} {[%emt 00:00:49]} 16. Nf3 {[%clk 00:14:47]} {[%emt
00:00:05]} Ne5 {[%clk 00:06:47]} {[%emt 00:00:20]} 17. Nh4 {[%clk 00:14:29]}
{[%emt 00:00:20]} b5 {[%clk 00:06:33]} {[%emt 00:00:16]} 18. b3 {[%clk
00:14:23]} {[%emt 00:00:10]} Qe7 {[%clk 00:05:53]} {[%emt 00:00:43]} 19. Kf1
{[%clk 00:14:02]} {[%emt 00:00:24]} Kg8 {[%clk 00:05:25]} {[%emt 00:00:31]} 20.
Bd5 {[%clk 00:13:56]} {[%emt 00:00:10]} Kf8 {[%clk 00:05:04]} {[%emt 00:00:24]}
21. Rd1 {[%clk 00:13:48]} {[%emt 00:00:10]} Ng4 {[%clk 00:04:41]} {[%emt
00:00:27]} 22. Kg2 {[%clk 00:12:56]} {[%emt 00:00:56]} Re8 {[%clk 00:04:35]}
{[%emt 00:00:08]} 23. cxb5 {[%clk 00:12:36]} {[%emt 00:00:22]} Qxe2 {[%clk
00:04:26]} {[%emt 00:00:13]} 24. Nxg6+ {[%clk 00:12:37]} {[%emt 00:00:02]} fxg6
{[%clk 00:04:25]} {[%emt 00:00:04]} 25. Bxd6+ {[%clk 00:12:39]} {[%emt
00:00:01]} 1-0